[Event "32nd NATO Championship 2022"]
[Site "Tartu"]
[Date "2022.06.28"]
[Round "2.28"]
[White "Charles, Freddy"]
[Black "Csizmadia, Csaba"]
[Result "1-0"]
[ECO "D00"]
[WhiteElo "1728"]
[BlackElo "1875"]
[Annotator "NA RC"]
[PlyCount "89"]
[EventDate "2022.06.27"]
[EventType "swiss"]
[EventCountry "EST"]
[SourceTitle "playchess.com"]
[Source "ChessBase"]
[SourceQuality "1"]
[TimeControl "5400+30"]

{[%evp 22,89,10,23,18,32767,32767,32767,32767,-14,-10,0,32767,32767,32767,-8,32767,-17,0,-4,32767,0,9,0,36,3,0,0,40,25,33,23,23,25,19,32767,-22,-34,0,-9,0,-93,-102,-90,-98,-93,-83,-114,0,0,386,397,856,497,479,512,612,9,473,32767,32767,506,494,429,413,32767,32767,0,32767,29995]} 1. d4 {[%emt 0:00:03]} Nf6 {[%emt 0:00:02]} 2. Bf4 {[%emt 0:00:09]} d5 {[%emt 0:00:12]} 3. e3 {[%emt 0:00:52]} c5 {[%emt 0:00:07]} 4. Nc3 {[%emt 0:00:26]} e6 {[%emt 0:01:54]} 5. Nb5 {[%emt 0:02:08]} Na6 {[%emt 0:00:33]} 6. a4 {[%emt 0:01:25]} Be7 {[%emt 0:01:54]} 7. h3 {[%emt 0:00:38]} O-O {[%emt 0:00:08]} 8. Nf3 {[%emt 0:01:03]} c4 {[%emt 0:00:34]} 9. c3 {[%emt 0:01:18]} Qb6 {[%emt 0:04:01]} 10. Ne5 {[%emt 0:00:59]} Nd7 {[%emt 0:00:48]} 11. Qc2 {[%emt 0:01:27]} Nxe5 {[%emt 0:01:58]} 12. Bxe5 {[%emt 0:01:33]} Bd7 {[%emt 0:00:07]} 13. Na3 {[%emt 0:03:42]} Rfc8 {[%emt 0:00:54]} 14. Be2 {[%emt 0:01:32]} Qa5 {[%emt 0:01:57]} 15. Nb1 {[%emt 0:03:57]} b5 {[%emt 0:01:07]} 16. O-O {[%emt 0:04:39]} bxa4 {[%emt 0:00:14]} 17. Nd2 {[%emt 0:00:28]} Qb6 {[%emt 0:00:25]} 18. Rfb1 {[%emt 0:01:25]} Nc7 {[%emt 0:00:56]} 19. Bd1 {[%emt 0:04:14]} Bb5 {[%emt 0:07:16]} 20. Qc1 {[%emt 0:01:54]} Qc6 {[%emt 0:00:07]} 21. Bc2 {[%emt 0:00:16]} f6 {[%emt 0:04:04]} 22. Bh2 {[%emt 0:01:05]} Ne8 {[%emt 0:01:12]} (22... Rab8 $11 {feels stronger.}) 23. Qd1 {[%emt 0:00:19]} Nd6 {[%emt 0:00:52]} 24. Bxa4 {[%emt 0:01:09]} a6 {[%emt 0:00:08]} 25. Bc2 {[%emt 0:00:58]} Rf8 {[%emt 0:02:24]} 26. Qh5 {[%emt 0:04:57]} f5 {[%emt 0:00:12]} 27. Be5 {[%emt 0:02:12]} Nf7 {[%emt 0:01:56]} 28. f4 {[%emt 0:01:15]} Nxe5 {[%emt 0:00:53]} 29. dxe5 {[%emt 0:01:11]} Bc5 {[%emt 0:00:13]} 30. Qe2 {[%emt 0:00:15]} Qb6 {[%emt 0:00:18]} 31. Kf2 {[%emt 0:01:08] [#]} (31. Re1 $11 {keeps the balance.}) 31... g5 $1 {[%emt 0:05:19]} 32. g3 {[%emt 0:00:22]} gxf4 {[%emt 0:00:57]} 33. gxf4 {[%emt 0:00:14] [#]} Kh8 $1 {[%emt 0:00:16]} 34. Nf3 {[%emt 0:02:26]} h6 {[%emt 0:02:46]} (34... Rg8 $17 35. Rg1 Rxg1 36. Rxg1 Be8) 35. Nd4 {[%emt 0:01:04]} Rg8 $2 {[%emt 0:00:32]} (35... Ra7 $11 {and Black is okay.}) 36. Qh5 {[%emt 0:01:39]} Kh7 {[%emt 0:00:45]} (36... Bf8 $142 37. Qf7 Be8 38. Qf6+ Bg7 39. Qxe6 Qxe6 40. Nxe6 Bf7) 37. Qf7+ {[%emt 0:01:40]} Rg7 {[%emt 0:01:20]} 38. Qxe6 {[%emt 0:00:33]} Bxd4 {[%emt 0:00:35]} 39. Qxf5+ $2 {[%emt 0:03:46]} (39. Bxf5+ $18 Kh8 40. exd4) 39... Kh8 $2 {[%emt 0:01:35]} (39... Kg8 $1 $11 40. exd4 (40. cxd4 Rf8 $11) 40... Rf8) 40. exd4 {[%emt 0:01:56]} Bd7 {[%emt 0:00:16]} 41. Qh5 {[%emt 0:02:23]} ({Weaker is} 41. Qf6 Qxf6 42. exf6 Rf7 $18) 41... Rf8 {[%emt 0:00:35]} 42. Rg1 {[%emt 0:12:02]} Rxf4+ {[%emt 0:02:34]} 43. Ke3 {[%emt 0:02:01]} Rgf7 {[%emt 0:00:35]} 44. Rg3 $2 {[%emt 0:07:01]} ({Stronger than} 44. Rg6 Rf3+ 45. Qxf3 Rxf3+ 46. Kxf3 Qxb2 $11) ({White should play} 44. Qg6 $18 Qxg6 45. Bxg6 (45. Rxg6 $2 {is the wrong capture.} Rf3+ 46. Kd2 Rf2+ 47. Kc1 Rxc2+ 48. Kxc2 Bf5+ 49. Kc1 Bxg6 $19) 45... Rf3+ 46. Ke2) 44... Bf5 {[%emt 0:03:27]} 45. Qxf7 {[%emt 0:04:13]} 1-0

[Event "32nd NATO Championship 2022"]
[Site "Tartu"]
[Date "2022.06.28"]
[Round "2.29"]
[White "Heran-Boily, Samuel"]
[Black "Voroblievas, Arturas"]
[Result "1/2-1/2"]
[ECO "C78"]
[WhiteElo "1871"]
[BlackElo "1740"]
[Annotator "NA RC"]
[PlyCount "142"]
[EventDate "2022.06.27"]
[EventType "swiss"]
[EventCountry "EST"]
[SourceTitle "playchess.com"]
[Source "ChessBase"]
[SourceQuality "1"]
[TimeControl "5400+30"]

1. e4 {[%emt 0:00:27]} e5 {[%emt 0:00:05]} 2. Nf3 {[%emt 0:00:05]} Nc6 {[%emt 0:00:06]} 3. Bb5 {[%emt 0:00:06]} a6 {[%emt 0:00:05]} 4. Ba4 {[%emt 0:00:03]} Nf6 {[%emt 0:00:06]} 5. d3 {[%emt 0:00:06]} b5 {[%emt 0:00:24]} 6. Bb3 {[%emt 0:00:10]} Bc5 {[%emt 0:00:55]} 7. O-O {[%emt 0:00:12] 7.c3 might become the main line.} h6 {[%emt 0:00:46]} 8. c3 {[%emt 0:00:30]} O-O {[%emt 0:00:07]} 9. Re1 {[%emt 0:00:56]} d6 {[%emt 0:01:18]} 10. Nbd2 {[%emt 0:00:11]} Ng4 {[%emt 0:00:58]} 11. Re2 {[%emt 0:00:25] [#]} Na5 $146 {[%emt 0:02:19]} ({Predecessor:} 11... Kh8 12. Nf1 f5 13. Bd5 Bd7 14. exf5 Rxf5 15. Ng3 Rf8 16. d4 exd4 17. Nxd4 Bxd4 18. cxd4 {1-0 (54) Potapov,P (2516)-Warmerdam,M (2433) Skopje 2018}) 12. Bc2 {[%emt 0:00:10]} Nc6 {[%emt 1:29:21]} 13. h3 {[%emt 0:00:18]} Nf6 {[%emt 0:00:00]} 14. Nf1 {[%emt 0:00:17]} Nh5 {[%emt 0:00:00]} 15. Re1 {[%emt 0:12:37]} Bb6 {[%emt 0:00:00]} 16. Nxe5 {[%emt 0:01:43]} Qh4 {[%emt 0:00:00]} 17. Nf3 {[%emt 0:13:41]} Qxf2+ {[%emt 0:00:00]} 18. Kh2 {[%emt 0:02:00]} Ne5 {[%emt 0:00:00]} 19. Nd4 {[%emt 0:05:15]} Bxd4 {[%emt 0:00:00]} 20. cxd4 {[%emt 0:03:05]} Nf3+ {[%emt 0:00:00]} 21. Qxf3 Qxe1 {[%emt 0:00:00]} 22. e5 {[%emt 0:11:08]} Bb7 {[%emt 0:00:00]} 23. Qxh5 Qxf1 {[%emt 0:00:00]} 24. Qg4 {[%emt 0:05:47]} f5 {[%emt 0:00:00]} 25. Qg6 {[%emt 0:05:26]} f4 {[%emt 0:00:00]} 26. Bb3+ {[%emt 0:17:08]} d5 {[%emt 0:00:00]} 27. Qg4 {[%emt 0:05:25]} Rae8 {[%emt 0:00:00]} 28. Qf3 {[%emt 0:01:24]} Qxf3 {[%emt 0:00:00]} 29. gxf3 {[%emt 0:00:06]} c6 {[%emt 0:00:00]} 30. Bd2 {[%emt 0:00:32]} Bc8 {[%emt 0:00:00]} 31. Rc1 {[%emt 0:03:52]} Bd7 {[%emt 0:00:00]} 32. Rg1 {[%emt 0:02:43]} Kh7 {[%emt 0:00:00]} 33. Rc1 {[%emt 0:01:18]} Rf5 {[%emt 0:00:00]} 34. Rg1 {[%emt 0:01:16]} Rh5 {[%emt 0:00:00]} 35. Bxf4 {[%emt 0:00:33]} Rf8 {[%emt 0:00:00]} 36. Bg3 {[%emt 0:04:40]} Bxh3 {[%emt 0:01:10]} 37. Rc1 {[%emt 0:01:11]} Bd7+ {[%emt 0:03:45]} 38. Kg2 {[%emt 0:00:11]} Rg5 {[%emt 0:00:34]} 39. Bd1 {[%emt 0:00:49]} Rf4 {[%emt 0:02:07]} 40. Kf2 {[%emt 0:00:41]} Rxd4 {[%emt 0:00:26]} 41. f4 {[%emt 0:00:16]} Rf5 {[%emt 0:01:40]} 42. Ke3 {[%emt 0:00:29]} Rb4 {[%emt 0:00:45]} 43. b3 {[%emt 0:00:11]} g5 {[%emt 0:01:01]} 44. d4 {[%emt 0:00:23]} gxf4+ {[%emt 0:00:12]} 45. Bxf4 {[%emt 0:00:21]} c5 {[%emt 0:00:13]} 46. Rxc5 {[%emt 0:00:24]} Rxf4 {[%emt 0:00:09]} 47. Kxf4 {[%emt 0:00:19]} Rxd4+ {[%emt 0:00:04]} 48. Ke3 {[%emt 0:01:12]} Rxd1 {[%emt 0:00:45]} 49. Rc7 {[%emt 0:00:06]} Kg6 {[%emt 0:00:50]} 50. Rxd7 {[%emt 0:00:11]} Kf5 {[%emt 0:00:18]} 51. Rd6 {[%emt 0:00:37]} Kxe5 {[%emt 0:00:23]} 52. Rxh6 {[%emt 0:00:11]} a5 {[%emt 0:00:30]} 53. Ra6 {[%emt 0:00:14]} a4 {[%emt 0:01:32]} 54. bxa4 {[%emt 0:00:10]} bxa4 {[%emt 0:00:03]} 55. Rxa4 {[%emt 0:00:05]} Rh1 {[%emt 0:00:47]} 56. Ra8 {[%emt 0:00:57]} Rh3+ {[%emt 0:00:12]} 57. Kd2 {[%emt 0:00:10]} Kd4 {[%emt 0:00:11]} 58. Ra4+ {[%emt 0:00:17]} Kc5 {[%emt 0:00:07]} 59. Ra5+ {[%emt 0:00:06]} Kc4 $11 {[%emt 0:00:37]} 60. Ra4+ {[%emt 0:00:12]} Kb5 {[%emt 0:00:17]} 61. Ra8 {[%emt 0:00:07]} Kb4 {[%emt 0:00:29]} 62. Rb8+ {[%emt 0:01:01]} Kc4 {[%emt 0:00:18]} 63. Ra8 {[%emt 0:00:47]} d4 {[%emt 0:00:23]} 64. Rc8+ {[%emt 0:00:22]} Kb4 {[%emt 0:00:11]} 65. Rd8 {[%emt 0:00:24]} Kc4 {[%emt 0:00:19]} 66. Rc8+ {[%emt 0:00:05]} Kd5 {[%emt 0:00:15]} 67. Rd8+ {[%emt 0:00:10]} Kc5 {[%emt 0:00:07]} 68. Rc8+ {[%emt 0:00:07]} Kb4 {[%emt 0:00:59]} 69. Rd8 {[%emt 0:00:09]} Kc5 {[%emt 0:00:10]} 70. Rc8+ {[%emt 0:00:41]} Kd6 {[%emt 0:00:43]} 71. Rd8+ {[%emt 0:00:10]} Kc5 {[%emt 0:00:01]} 1/2-1/2

[Event "32nd NATO Championship 2022"]
[Site "Tartu"]
[Date "2022.06.28"]
[Round "2.31"]
[White "Korge, Kersti"]
[Black "Stuhr, Finn"]
[Result "0-1"]
[ECO "A00"]
[WhiteElo "1864"]
[BlackElo "1667"]
[Annotator "NA RC"]
[PlyCount "64"]
[EventDate "2022.06.27"]
[EventType "swiss"]
[EventCountry "EST"]
[SourceTitle "playchess.com"]
[Source "ChessBase"]
[SourceQuality "1"]
[TimeControl "5400+30"]

{[%evp 26,62,7,-1,13,7,54,16,45,16,50,29,25,32767,0,-35,0,0,17,16,18,-44,15,14,32767,10,46,0,7,32767,6,-69,32767,32767,-806,-960,-998,32767,-1686]} 1. b4 {[%emt 0:00:02]} b6 {[%emt 0:03:11]} 2. Bb2 {[%emt 0:00:15]} Bb7 {[%emt 0:00:11]} 3. e3 {[%emt 0:00:18]} e6 {[%emt 0:00:12]} 4. b5 {[%emt 0:00:15]} d6 {[%emt 0:00:25]} 5. Nf3 {[%emt 0:00:14]} Nd7 {[%emt 0:00:46]} 6. Be2 {[%emt 0:00:11]} Ngf6 {[%emt 0:00:42]} 7. O-O {[%emt 0:00:18]} g6 {[%emt 0:00:18]} 8. c4 {[%emt 0:00:56]} Bg7 {[%emt 0:00:26]} 9. d4 {[%emt 0:01:13]} O-O {[%emt 0:00:29]} 10. Nc3 {[%emt 0:01:17]} Re8 {[%emt 0:03:22]} 11. Qc2 {[%emt 0:02:37]} e5 {[%emt 0:05:06]} 12. d5 {[%emt 0:03:24]} Nc5 {[%emt 0:00:45]} 13. Nd2 {[%emt 0:01:15]} Bc8 {[%emt 0:02:50]} 14. e4 {[%emt 0:07:49]} Bh6 {[%emt 0:01:29]} 15. Nb3 {[%emt 0:01:32]} Nb7 {[%emt 0:03:16]} (15... Nfd7 $11) 16. Bc1 {[%emt 0:00:50]} Bxc1 {[%emt 0:03:27]} 17. Qxc1 {[%emt 0:01:01]} Bg4 {[%emt 0:02:07]} (17... Nd7 $11) 18. Bxg4 {[%emt 0:02:40]} (18. f3 $5 {[%cal Rf3g4]} Bc8 19. f4 $14) 18... Nxg4 {[%emt 0:00:12]} 19. h3 {[%emt 0:00:14]} Nf6 {[%emt 0:00:23]} 20. Qe3 {[%emt 0:02:28]} Nh5 {[%emt 0:02:14]} (20... Nd7 $15) 21. g3 {[%emt 0:00:57]} Qd7 {[%emt 0:00:56]} 22. Kg2 {[%emt 0:00:47]} f5 {[%emt 0:06:46]} 23. Qg5 {[%emt 0:01:04]} (23. exf5 $11 Qxf5 24. Qf3) 23... Rf8 {[%emt 0:04:24]} ({Black should try} 23... f4 $15) 24. exf5 {[%emt 0:04:58]} Rxf5 {[%emt 0:00:37]} 25. Qe3 {[%emt 0:03:26]} Raf8 {[%emt 0:00:55]} (25... a5 $11 {was preferrable.}) 26. Ne4 {[%emt 0:01:48]} (26. f3 $1 $14) 26... Rf3 {[%emt 0:06:26]} 27. Qh6 {[%emt 0:03:05]} R3f5 {[%emt 0:04:00]} 28. g4 {[%emt 0:06:25]} (28. Ng5 $1 $11) 28... Nf4+ {[%emt 0:00:59]} 29. Kh2 {[%emt 0:00:09] [#]} Rh5 $3 {[%emt 0:00:33]} 30. Qxf4 {[%emt 0:01:18]} Rxf4 {[%emt 0:01:08]} 31. f3 {[%emt 0:01:46] [#]} Rxe4 $19 {[%emt 0:47:25]} 32. fxe4 {[%emt 0:51:58]} Qxg4 {[%emt 0:00:00]} 0-1

[Event "32nd NATO Championship 2022"]
[Site "Tartu"]
[Date "2022.06.28"]
[Round "2.32"]
[White "Coulon, Dominic"]
[Black "Giedraitis, Mingaudas"]
[Result "0-1"]
[ECO "D03"]
[WhiteElo "1701"]
[BlackElo "1846"]
[Annotator "NA RC"]
[PlyCount "54"]
[EventDate "2022.06.27"]
[EventType "swiss"]
[EventCountry "EST"]
[SourceTitle "playchess.com"]
[Source "ChessBase"]
[SourceQuality "1"]
[TimeControl "5400+30"]

1. d4 {[%emt 0:00:04]} d5 {[%emt 0:00:11]} 2. Nf3 {[%emt 0:00:30]} Nf6 {[%emt 0:00:30]} 3. Bg5 {[%emt 0:00:30]} c6 {[%emt 0:00:30]} 4. Nbd2 {[%emt 0:00:30]} Qb6 {[%emt 0:00:30]} 5. Bxf6 {[%emt 0:00:30]} exf6 {[%emt 0:00:30]} 6. Rb1 {[%emt 0:00:30]} Bf5 {[%emt 0:00:30]} 7. e3 {[%emt 0:00:30]} Bd6 {[%emt 0:00:30]} 8. Nh4 {[%emt 0:00:30]} Bd7 {[%emt 0:00:30]} 9. Bd3 {[%emt 0:00:30]} g6 {[%emt 0:00:30]} 10. c3 {[%emt 0:00:30]} O-O {[%emt 0:00:30]} 11. O-O {[%emt 0:00:30]} f5 {[%emt 0:00:30]} 12. f4 {[%emt 0:00:30]} Bc8 {[%emt 0:00:30]} 13. Rf3 {[%emt 0:00:30]} Qd8 {[%emt 0:00:30]} 14. Rh3 {[%emt 0:00:30]} f6 {[%emt 0:00:30]} 15. Qc2 {[%emt 0:00:30]} Be6 {[%emt 0:00:30]} 16. Rg3 {[%emt 0:00:30]} Kf7 $16 {[%emt 0:00:30]} (16... Kh8 $1 $11 {keeps the balance.}) 17. Nxf5 gxf5 18. Bxf5 Qd7 19. Bxh7 f5 20. Nf3 Ke8 21. Ng5 Be7 22. Nxe6 Qxe6 23. Bg6+ Kd8 24. Bh5 Nd7 25. Bf3 Qxe3+ 26. Kh1 Qxf4 27. Re1 {[%emt 0:13:04]} Nf6 {[%emt 0:13:11]} 0-1

[Event "32nd NATO Championship 2022"]
[Site "Tartu"]
[Date "2022.06.28"]
[Round "2.35"]
[White "O`Byrne, Daniel"]
[Black "Kocur, Marc"]
[Result "1-0"]
[ECO "B00"]
[WhiteElo "1664"]
[BlackElo "1829"]
[Annotator "NA RC"]
[PlyCount "93"]
[EventDate "2022.06.27"]
[EventType "swiss"]
[EventCountry "EST"]
[SourceTitle "playchess.com"]
[Source "ChessBase"]
[SourceQuality "1"]
[TimeControl "5400+30"]

{[%evp 13,93,41,70,32767,32767,87,32767,116,94,125,135,32767,44,32767,32767,36,32767,6,12,0,0,0,0,-13,0,-5,24,0,35,13,24,32767,32767,22,27,26,29,12,20,20,20,32767,21,23,22,19,17,18,32767,17,32767,32767,32767,0,32767,32767,462,32767,32767,487,32767,32767,32767,32767,668,32767,754,1208,32767,32767,32767,32767,32767,2404,32767,32767,32767,32767,32767,32767,2936,29981]} 1. e4 {[%emt 0:00:04]} Nc6 {[%emt 0:00:13]} 2. d4 {[%emt 0:00:26]} d5 {[%emt 0:00:14]} 3. e5 {[%emt 0:00:15]} Bf5 {[%emt 0:00:15]} 4. c3 {[%emt 0:01:32]} e6 {[%emt 0:04:21]} 5. Ne2 {[%emt 0:01:54]} f6 {[%emt 0:05:19]} 6. f4 {[%emt 0:01:01]} Nh6 {[%emt 0:13:13]} 7. Ng3 {[%emt 0:04:28]} Bxb1 {[%emt 0:06:02]} 8. Rxb1 {[%emt 0:00:14]} f5 {[%emt 0:00:11]} 9. Qb3 {[%emt 0:00:34]} Na5 {[%emt 0:05:25] [#]} 10. Qa4+ $1 {[%emt 0:00:45]} c6 {[%emt 0:02:29] [#]} 11. b4 $1 {[%emt 0:00:41]} Nc4 {[%emt 0:00:08]} 12. b5 {[%emt 0:01:27]} Qa5 {[%emt 0:04:42]} 13. Qxa5 {[%emt 0:01:39]} Nxa5 {[%emt 0:00:05]} 14. bxc6 {[%emt 0:01:00]} bxc6 {[%emt 0:00:06]} 15. Nh5 {[%emt 0:01:34]} Kf7 {[%emt 0:01:39]} 16. Bd2 {[%emt 0:02:06]} Be7 {[%emt 0:01:07]} 17. Bd3 {[%emt 0:01:15]} Rhb8 {[%emt 0:05:28]} 18. O-O {[%emt 0:00:16]} c5 {[%emt 0:05:09]} 19. h3 {[%emt 0:02:30]} Ng8 {[%emt 0:06:19]} 20. Ng3 {[%emt 0:04:58]} g6 {[%emt 0:02:16]} 21. Ne2 {[%emt 0:00:44]} c4 {[%emt 0:01:12]} 22. Bc2 {[%emt 0:00:17]} Ba3 {[%emt 0:01:07]} 23. Rxb8 {[%emt 0:04:08]} Rxb8 {[%emt 0:00:08]} 24. Rb1 $1 {[%emt 0:00:09]} Rb6 {[%emt 0:02:23]} 25. Bc1 {[%emt 0:05:44]} Bxc1 {[%emt 0:02:37]} 26. Nxc1 {[%emt 0:00:24]} h6 {[%emt 0:00:26]} 27. Kf2 {[%emt 0:03:31]} Ne7 {[%emt 0:00:39]} 28. Rxb6 {[%emt 0:02:04]} axb6 {[%emt 0:00:04]} 29. Ba4 {[%emt 0:00:19]} Nc8 {[%emt 0:02:59]} 30. Ke2 {[%emt 0:08:08]} Na7 {[%emt 0:00:24]} 31. Bc2 {[%emt 0:00:33]} Nb5 {[%emt 0:01:00]} 32. Kd2 {[%emt 0:00:41]} Na3 {[%emt 0:00:56]} 33. Ne2 {[%emt 0:00:58]} (33. Ba4 $14) 33... b5 {[%emt 0:00:54]} 34. Kc1 {[%emt 0:00:23]} Nc6 $2 {[%emt 0:00:38]} (34... Nxc2 $11 {and Black is okay.} 35. Kxc2 Nc6) 35. Bd1 {[%emt 0:02:26]} b4 {[%emt 0:00:29]} 36. Ba4 {[%emt 0:00:38]} Na7 {[%emt 0:02:31]} 37. cxb4 {[%emt 0:00:18]} N3b5 {[%emt 0:03:08]} 38. Bxb5 {[%emt 0:00:53]} Nxb5 {[%emt 0:00:03]} 39. a4 {[%emt 0:00:13]} Nc7 {[%emt 0:00:41]} 40. Nc3 {[%emt 0:00:29]} g5 {[%emt 0:00:37]} 41. g3 {[%emt 0:00:19]} gxf4 {[%emt 0:00:11]} 42. gxf4 {[%emt 0:00:07]} Kg6 {[%emt 0:00:22]} 43. b5 {[%emt 0:00:55]} Kh5 {[%emt 0:00:10]} 44. a5 {[%emt 0:00:33]} Kh4 {[%emt 0:00:15]} 45. b6 {[%emt 0:01:01]} Na6 {[%emt 0:00:40]} 46. Nxd5 {[%emt 0:00:34]} Kxh3 $18 {[%emt 0:00:46]} 47. Nc7 {[%emt 0:00:29]} 1-0

[Event "32nd NATO Championship 2022"]
[Site "Tartu"]
[Date "2022.06.28"]
[Round "2.36"]
[White "Rosseel, Kimball"]
[Black "Chapman, Chas"]
[Result "1-0"]
[ECO "E14"]
[WhiteElo "1822"]
[BlackElo "1646"]
[Annotator "NA RC"]
[PlyCount "67"]
[EventDate "2022.06.27"]
[EventType "swiss"]
[EventCountry "EST"]
[SourceTitle "playchess.com"]
[Source "ChessBase"]
[SourceQuality "1"]
[TimeControl "5400+30"]

1. d4 {[%emt 0:00:04]} Nf6 {[%emt 0:00:31]} 2. Nf3 {[%emt 0:00:07]} d5 {[%emt 0:00:42]} 3. e3 {[%emt 0:00:08]} e6 {[%emt 0:01:31]} 4. Bd3 {[%emt 0:00:07]} Be7 {[%emt 0:01:19]} 5. O-O {[%emt 0:00:19]} O-O {[%emt 0:01:07]} 6. b3 {[%emt 0:01:03]} b6 {[%emt 0:02:24]} 7. Bb2 {[%emt 0:01:15]} Bb7 {[%emt 0:02:40]} 8. c4 {[%emt 0:01:32]} dxc4 {[%emt 0:01:39]} 9. bxc4 {[%emt 0:00:44]} c5 {[%emt 0:06:24]} 10. Nbd2 {[%emt 0:02:15]} cxd4 {[%emt 0:05:42]} 11. exd4 {[%emt 0:01:02]} Nc6 {[%emt 0:06:17]} 12. Rc1 {[%emt 0:02:11]} Rc8 {[%emt 0:03:25]} 13. Qe2 {[%emt 0:02:51]} Nb4 {[%emt 0:06:02]} 14. Bb1 {[%emt 0:02:15]} Qd6 {[%emt 0:12:08]} (14... Nc6 $11 {remains equal.}) 15. Ne5 {[%emt 0:06:35]} Nc6 {[%emt 0:11:11]} 16. Ndf3 {[%emt 0:03:09]} Rc7 {[%emt 0:06:31]} (16... Nh5 $14) 17. Rfd1 {[%emt 0:03:44]} (17. d5 $16 Nd8 18. Rfd1) 17... Qd8 $2 {[%emt 0:03:07] [#]} (17... Na5 $14) 18. a3 $2 {[%emt 0:04:00]} (18. Ng5 $1 $18) 18... Qc8 {[%emt 0:01:18]} 19. Nxc6 {[%emt 0:22:37]} Bxc6 {[%emt 0:01:09]} 20. Ne5 {[%emt 0:01:08]} Bb7 {[%emt 0:05:48]} 21. Rc3 {[%emt 0:05:59]} Qa8 {[%emt 0:03:00]} 22. f3 {[%emt 0:02:36]} Nd7 {[%emt 0:03:41]} 23. Qc2 {[%emt 0:04:53]} g6 $11 {[%emt 0:00:53]} 24. Qe2 {[%emt 0:06:07]} Bf6 {[%emt 0:02:26]} 25. f4 {[%emt 0:02:26]} Nxe5 {[%emt 0:00:58]} 26. fxe5 {[%emt 0:00:58]} Bg7 {[%emt 0:01:31]} 27. Bc1 {[%emt 0:03:06]} f6 {[%emt 0:02:35]} 28. exf6 {[%emt 0:00:52]} Bxf6 {[%emt 0:01:12]} 29. Qxe6+ {[%emt 0:00:56]} Kg7 {[%emt 0:01:48]} 30. Qh3 {[%emt 0:02:42]} Be4 {[%emt 0:03:17]} 31. Bh6+ {[%emt 0:00:19]} Kg8 {[%emt 0:01:30]} 32. Qe6+ {[%emt 0:02:41]} Rff7 {[%emt 0:01:14]} 33. Bxe4 {[%emt 0:00:54]} Rce7 {[%emt 0:00:50]} 34. Qxf7+ {[%emt 0:00:50]} 1-0

[Event "32nd NATO Championship 2022"]
[Site "Tartu"]
[Date "2022.06.28"]
[Round "2.37"]
[White "Windey, Luc"]
[Black "Forsythe, William Bradley"]
[Result "1-0"]
[ECO "A48"]
[WhiteElo "1635"]
[BlackElo "1608"]
[Annotator "NA RC"]
[PlyCount "67"]
[EventDate "2022.06.27"]
[EventType "swiss"]
[EventCountry "EST"]
[SourceTitle "playchess.com"]
[Source "ChessBase"]
[SourceQuality "1"]
[TimeControl "5400+30"]

1. d4 {[%emt 0:00:08]} Nf6 {[%emt 0:00:10]} 2. Nf3 {[%emt 0:00:30]} d6 {[%emt 0:00:30]} 3. Bf4 {[%emt 0:00:30]} g6 {[%emt 0:00:30]} 4. e3 {[%emt 0:00:00]} Bg7 {[%emt 0:00:00]} 5. c3 {[%emt 0:00:13]} Nbd7 {[%emt 0:00:19]} 6. Nbd2 {[%emt 0:00:36]} O-O {[%emt 0:00:49]} 7. Bc4 {[%emt 0:03:22]} c5 {[%emt 0:03:09]} 8. O-O {[%emt 0:02:34]} a6 {[%emt 0:00:22]} 9. a4 {[%emt 0:01:12]} b6 {[%emt 0:13:28]} 10. Re1 {[%emt 0:06:46]} Bb7 {[%emt 0:04:58]} 11. e4 {[%emt 0:07:14]} cxd4 {[%emt 0:02:50]} 12. cxd4 {[%emt 0:01:05]} d5 {[%emt 0:01:50]} 13. Bd3 {[%emt 0:02:39]} dxe4 {[%emt 0:03:33]} 14. Nxe4 {[%emt 0:00:46]} Nd5 {[%emt 0:01:51]} 15. Bg3 {[%emt 0:02:01]} N7f6 {[%emt 0:09:56]} 16. Be5 {[%emt 0:03:56]} Nb4 {[%emt 0:16:10]} 17. Nxf6+ {[%emt 0:05:33]} exf6 {[%emt 0:00:07]} 18. Bg3 {[%emt 0:04:35]} Nxd3 {[%emt 0:14:24]} 19. Qxd3 {[%emt 0:00:46]} Bxf3 {[%emt 0:00:44]} 20. gxf3 {[%emt 0:00:40]} Qd7 {[%emt 0:01:15]} 21. b3 {[%emt 0:05:20]} Rfd8 {[%emt 0:04:11]} 22. Rad1 {[%emt 0:04:09]} b5 {[%emt 0:00:26]} 23. axb5 {[%emt 0:06:00]} axb5 {[%emt 0:00:06]} 24. Re2 {[%emt 0:00:43]} Ra6 {[%emt 0:06:13]} 25. Rc2 {[%emt 0:01:01]} f5 {[%emt 0:06:03]} 26. d5 {[%emt 0:01:12]} Ra1 {[%emt 0:06:02]} 27. Rxa1 {[%emt 0:04:03]} Bxa1 {[%emt 0:00:02]} 28. Rc5 {[%emt 0:00:18]} b4 {[%emt 0:00:51]} 29. Bc7 {[%emt 0:02:07]} Re8 {[%emt 0:01:03]} 30. Qb5 {[%emt 0:02:09]} Re1+ {[%emt 0:02:12]} 31. Kg2 {[%emt 0:00:35]} Qe7 {[%emt 0:00:02]} 32. Qxb4 {[%emt 0:03:00]} Re2 {[%emt 0:01:04]} 33. Bg3 {[%emt 0:01:16]} Be5 {[%emt 0:00:41]} 34. Rc8+ {[%emt 0:00:27]} 1-0